bitfinex/quotes_BTCUSD_20250927
["timestamp","ask_amount","ask_price","bid_price","bid_amount"]
[1758981480271,8.33077105,109660.0,109650.0,0.06442971]
[1758981481194,8.02275573,109660.0,109650.0,0.06442971]
[1758981495006,8.02275636,109660.0,109650.0,0.06442971]
[1758981507640,8.02275636,109660.0,109650.0,0.05507971]
[1758981507861,8.00844627,109660.0,109650.0,0.05507971]
[1758981508895,8.00844627,109660.0,109650.0,0.05719971]
[1758981509399,8.00844627,109660.0,109650.0,0.05507971]
[1758981509807,8.09715774,109660.0,109650.0,0.05507971]
[1758981511037,8.11146801,109660.0,109650.0,0.05507971]
[1758981518361,8.11146801,109660.0,109650.0,0.05719971]
[1758981520377,8.11146801,109660.0,109650.0,0.06030971]
[1758981521990,7.73198801,109660.0,109650.0,0.06030971]
[1758981522198,8.11130801,109660.0,109650.0,0.06030971]
[1758981523265,7.73198801,109660.0,109650.0,0.06030971]
[1758981523473,8.11130801,109660.0,109650.0,0.06030971]
[1758981526486,8.16130801,109660.0,109650.0,0.06030971]
[1758981528128,7.78198801,109660.0,109650.0,0.06030971]
[1758981528266,8.16130801,109660.0,109650.0,0.06030971]
[1758981528472,7.87047179,109660.0,109650.0,0.06030971]
[1758981529480,7.87047179,109660.0,109650.0,0.05066971]
[1758981529789,7.85616152,109660.0,109650.0,0.05066971]
[1758981529917,7.87906152,109660.0,109650.0,0.05066971]
[1758981530607,7.43319599,109660.0,109650.0,0.05066971]
[1758981531892,7.43319599,109660.0,109650.0,0.07401971]
[1758981532584,7.44750626,109660.0,109650.0,0.07401971]
[1758981533428,7.53621773,109660.0,109650.0,0.07401971]
[1758981538393,7.53621773,109660.0,109650.0,0.07090971]
[1758981539356,7.52190746,109660.0,109650.0,0.07090971]
[1758981540962,7.87863598,109660.0,109650.0,0.05447971]
[1758981541184,7.87863598,109660.0,109650.0,1e-08]
[1758981541463,0.52241517,109640.0,109630.0,0.005]
[1758981541679,10.6543459,109640.0,109630.0,0.005]
[1758981541893,10.6772459,109640.0,109630.0,0.005]
[1758981542317,10.7047021,109640.0,109630.0,0.005]
[1758981542536,10.71901417,109640.0,109630.0,0.005]
[1758981543078,10.71901417,109640.0,109630.0,0.00703]
[1758981543288,10.64631628,109640.0,109630.0,0.01004]
[1758981543495,10.61560074,109640.0,109630.0,0.01004]
[1758981545173,10.60128867,109640.0,109630.0,0.01004]
[1758981546034,10.61560075,109640.0,109630.0,0.01004]
[1758981546711,10.71068075,109640.0,109630.0,0.01004]
[1758981548398,10.69636867,109640.0,109630.0,0.01004]
[1758981548608,10.71068075,109640.0,109630.0,0.01004]
[1758981550199,10.33140075,109640.0,109630.0,0.01004]
[1758981550402,10.71068075,109640.0,109630.0,0.01004]
[1758981550601,10.33140075,109640.0,109630.0,0.01004]
[1758981550980,10.71068075,109640.0,109630.0,0.01004]
[1758981551916,10.33140075,109640.0,109630.0,0.01004]
[1758981552581,10.71068075,109640.0,109630.0,0.01004]
[1758981552794,10.33140075,109640.0,109630.0,0.01004]
[1758981553453,10.79939222,109640.0,109630.0,0.01004]
[1758981553808,10.42011222,109640.0,109630.0,0.01004]
[1758981554150,10.79939222,109640.0,109630.0,0.01004]
[1758981555297,10.78508014,109640.0,109630.0,0.01004]
[1758981557932,10.79939233,109640.0,109630.0,0.01004]
[1758981558242,10.42011233,109640.0,109630.0,0.01004]
[1758981558449,10.70431233,109640.0,109630.0,0.01004]
[1758981559980,10.61560086,109640.0,109630.0,0.01004]
[1758981560792,10.3063164,109640.0,109630.0,0.01004]
[1758981562197,10.29989067,109640.0,109630.0,0.01004]
[1758981562382,10.30630796,109640.0,109630.0,0.01004]
[1758981563013,10.64630796,109640.0,109630.0,0.01004]
[1758981564003,10.43551448,109640.0,109630.0,0.01004]
[1758981564699,10.31494651,109640.0,109630.0,0.01004]
[1758981564919,10.28742937,109640.0,109630.0,0.01004]
[1758981565367,10.27311718,109640.0,109630.0,0.01004]
[1758981565585,10.27011718,109640.0,109630.0,0.01004]
[1758981565800,10.27111718,109640.0,109630.0,0.01004]
[1758981568257,10.28542937,109640.0,109630.0,0.01004]
[1758981571596,10.28542937,109640.0,109630.0,0.005]
[1758981572658,10.28542937,109640.0,109630.0,0.00706]
[1758981572877,10.37414084,109640.0,109630.0,0.01007]
[1758981575452,10.35982865,109640.0,109630.0,0.01007]
[1758981578336,10.27111718,109640.0,109630.0,0.01007]
[1758981579552,10.27112776,109640.0,109630.0,0.01007]
[1758981579750,10.28544003,109640.0,109630.0,0.01007]
[1758981584592,10.28544003,109640.0,109630.0,0.00706]
[1758981585005,10.64216855,109640.0,109630.0,0.00706]
[1758981585446,10.68041188,109640.0,109630.0,0.00706]
[1758981586007,10.32368336,109640.0,109630.0,0.00706]
[1758981586225,10.68041188,109640.0,109630.0,0.00706]
[1758981587322,10.66609961,109640.0,109630.0,0.00706]
[1758981590118,9.91439924,109640.0,109630.0,0.01016]
[1758981590286,10.64216858,109640.0,109630.0,0.01016]
[1758981590482,10.28544006,109640.0,109630.0,0.01016]
[1758981591513,10.64216858,109640.0,109630.0,0.01016]
[1758981592727,10.46390108,109640.0,109630.0,0.01016]
[1758981593743,10.46390087,109640.0,109630.0,0.01016]
[1758981595290,10.44958857,109640.0,109630.0,0.01016]
[1758981598269,10.46390087,109640.0,109630.0,0.01016]
[1758981604762,10.17970087,109640.0,109630.0,0.01016]
[1758981604964,10.46386087,109640.0,109630.0,0.01016]
[1758981605346,10.44954857,109640.0,109630.0,0.01016]
[1758981606651,10.44954857,109640.0,109630.0,0.00706]
[1758981606870,10.47706571,109640.0,109630.0,0.01016]
[1758981608548,10.49137798,109640.0,109630.0,0.01016]
[1758981612327,10.30541573,109640.0,109630.0,0.01016]
[1758981615450,10.29110346,109640.0,109630.0,0.01016]
[1758981618657,10.30541573,109640.0,109630.0,0.01016]
[1758981620718,10.02125573,109640.0,109630.0,0.01016]
[1758981620913,10.30537573,109640.0,109630.0,0.01016]
[1758981625299,10.29106346,109640.0,109630.0,0.01016]
[1758981628324,10.30537573,109640.0,109630.0,0.01016]
[1758981635138,10.27785859,109640.0,109630.0,0.01016]
[1758981635342,10.26354632,109640.0,109630.0,0.01016]
[1758981636949,10.26254632,109640.0,109630.0,0.01016]
[1758981637327,10.09177682,109640.0,109630.0,0.01016]
[1758981638348,10.10608907,109640.0,109630.0,0.01016]
[1758981642289,10.10608907,109640.0,109630.0,0.005]
[1758981652150,10.09177682,109640.0,109630.0,0.005]
[1758981654679,9.91338117,109640.0,109630.0,0.005]
[1758981654883,9.92769345,109640.0,109630.0,0.005]
[1758981663075,9.92769345,109640.0,109630.0,0.00699]
[1758981663518,9.91338117,109640.0,109630.0,0.00699]
[1758981663886,9.55654728,109640.0,109630.0,0.00699]
[1758981664097,9.55654728,109640.0,109630.0,0.00996]
[1758981664098,9.91334117,109640.0,109630.0,0.00996]
[1758981668618,9.70800615,109640.0,109630.0,0.00996]
[1758981670198,9.72231843,109640.0,109630.0,0.00996]
[1758981670654,9.70800615,109640.0,109630.0,0.00996]
[1758981672010,9.70800496,109640.0,109630.0,0.00996]
[1758981673288,9.70800496,109640.0,109630.0,0.00699]
[1758981673505,9.81102871,109640.0,109630.0,0.00699]
[1758981674485,9.72231724,109640.0,109630.0,0.00699]
[1758981677444,9.72231724,109640.0,109630.0,0.005]
[1758981679975,9.77446731,109640.0,109630.0,0.005]
[1758981680620,10.1312612,109640.0,109630.0,0.005]
[1758981680998,9.77446731,109640.0,109630.0,0.005]
[1758981681621,9.77446731,109640.0,109630.0,0.00715]
[1758981683555,9.77446731,109640.0,109630.0,0.005]
[1758981694842,9.60161572,109640.0,109630.0,0.005]
[1758981699914,9.60161382,109640.0,109630.0,0.005]
[1758981707845,9.31753382,109640.0,109630.0,0.00715]
[1758981708050,9.60157382,109640.0,109630.0,0.00715]
[1758981712316,9.60153382,109640.0,109630.0,0.00715]
[1758981712901,9.69024529,109640.0,109630.0,0.00715]
[1758981714802,9.8686454,109640.0,109630.0,0.00715]
[1758981714981,9.86222083,109640.0,109630.0,0.00715]
[1758981715181,9.86864585,109640.0,109630.0,0.00715]
[1758981720707,9.77993438,109640.0,109630.0,0.00715]
[1758981727855,9.77993426,109640.0,109630.0,0.00715]
[1758981733913,9.56182888,109640.0,109630.0,0.00715]
[1758981739479,9.380357,109640.0,109630.0,0.00715]
[1758981746609,9.380357,109640.0,109630.0,0.01027]
[1758981747172,9.16590421,109640.0,109630.0,0.01027]
[1758981747648,9.13838707,109640.0,109630.0,0.01027]
[1758981747872,9.13834707,109640.0,109630.0,0.01027]
[1758981748461,8.85438707,109640.0,109630.0,0.01027]
[1758981748658,9.13834707,109640.0,109630.0,0.01027]
[1758981756456,9.1383469,109640.0,109630.0,0.01027]
[1758981768404,9.1383469,109640.0,109630.0,0.00715]
[1758981772911,9.1383469,109640.0,109630.0,0.0102]
[1758981776761,8.95993696,109640.0,109630.0,0.0102]
[1758981783485,8.95993696,109640.0,109630.0,0.00715]
[1758981783636,8.95351223,109640.0,109630.0,0.00715]
[1758981783890,8.95993619,109640.0,109630.0,0.00715]
[1758981785403,8.95993619,109640.0,109630.0,0.005]
[1758981786305,8.95993619,109640.0,109630.0,0.00711]
[1758981786755,8.95993619,109640.0,109630.0,0.005]
[1758981788142,8.60315213,109640.0,109630.0,0.00715]
[1758981788353,8.93526326,109640.0,109630.0,0.0101]
[1758981788592,8.93526339,109640.0,109630.0,0.0101]
[1758981791498,8.65134339,109640.0,109630.0,0.0101]
[1758981791711,8.93526339,109640.0,109630.0,0.0101]
[1758981792789,8.76498955,109640.0,109630.0,0.0101]
[1758981793006,8.12428549,109640.0,109630.0,0.0101]
[1758981793153,8.40820549,109640.0,109630.0,0.0101]
[1758981793357,8.39389097,109640.0,109630.0,0.0101]
[1758981793567,8.39389097,109640.0,109630.0,0.01530948]
[1758981794271,8.39389097,109640.0,109630.0,0.04546138]
[1758981794272,7.92113395,109640.0,109630.0,0.04546138]
[1758981794492,7.85236637,109640.0,109630.0,0.04546138]
[1758981794696,4.46178237,109640.0,109630.0,0.04546138]
[1758981794926,3.9676822,109640.0,109630.0,0.04546138]
[1758981795152,3.9666822,109640.0,109630.0,0.04546138]
[1758981795351,3.7571622,109640.0,109630.0,0.04546138]
[1758981795603,3.7581622,109640.0,109630.0,0.06370456]
[1758981796038,3.7571622,109640.0,109630.0,0.06370456]
[1758981796256,3.77147297,109640.0,109630.0,0.06370456]
[1758981797500,3.7571622,109640.0,109630.0,0.06370456]
[1758981798012,3.7571622,109640.0,109630.0,0.04546138]
[1758981800233,3.77147287,109640.0,109630.0,0.04546138]
[1758981805428,3.7571622,109640.0,109630.0,0.04546138]
[1758981808667,3.77147287,109640.0,109630.0,0.04546138]
[1758981810879,3.95388804,109640.0,109630.0,0.04546138]
[1758981812084,3.95388804,109640.0,109630.0,0.04251138]
[1758981812257,3.95388804,109640.0,109630.0,0.04036138]
[1758981813142,3.95388804,109640.0,109630.0,0.04246138]
[1758981813353,3.95388804,109640.0,109630.0,0.04036138]
[1758981815432,4.3106721,109640.0,109630.0,0.04544138]
[1758981817021,4.3106721,109640.0,109630.0,0.04036138]
[1758981817422,4.3106721,109640.0,109630.0,0.0351519]
[1758981817423,4.5947921,109640.0,109630.0,0.0351519]
[1758981817666,4.62230924,109640.0,109630.0,0.0351519]
[1758981817881,4.60799857,109640.0,109630.0,0.0351519]
[1758981818300,4.58689639,109640.0,109630.0,0.0351519]
[1758981820612,4.60120754,109640.0,109630.0,0.0351519]
[1758981822567,4.39155505,109640.0,109630.0,0.0351519]
[1758981822905,4.39155505,109640.0,109630.0,0.0583219]
[1758981823269,4.41900702,109640.0,109630.0,0.0583219]
[1758981824643,4.44222702,109640.0,109630.0,0.0583219]
[1758981828732,4.42791587,109640.0,109630.0,0.0583219]
[1758981832143,4.44222705,109640.0,109630.0,0.0583219]
[1758981836553,4.62057357,109640.0,109630.0,0.0583219]
[1758981838989,4.60626239,109640.0,109630.0,0.0583219]
[1758981841241,4.87382768,109640.0,109630.0,0.02817]
[1758981842132,4.88813919,109640.0,109630.0,0.02817]
[1758981842563,4.08544332,109640.0,109630.0,0.02817]
[1758981842751,4.60401919,109640.0,109630.0,0.02817]
[1758981842904,4.88933919,109640.0,109630.0,0.02817]
[1758981843124,4.6217739,109640.0,109630.0,0.02817]
[1758981843732,4.6218139,109640.0,109630.0,0.02817]
[1758981845740,4.88937919,109640.0,109630.0,0.02817]
[1758981848955,4.94152926,109640.0,109630.0,0.02817]
[1758981849572,4.92721775,109640.0,109630.0,0.02817]
[1758981852431,5.03024105,109640.0,109630.0,0.02817]
[1758981853302,4.94152958,109640.0,109630.0,0.02817]
[1758981854629,4.65716958,109640.0,109630.0,0.02817]
[1758981854833,4.94188958,109640.0,109630.0,0.02817]
[1758981856184,4.92757775,109640.0,109630.0,0.02817]
[1758981856632,4.64285775,109640.0,109630.0,0.02817]
[1758981856847,4.92765775,109640.0,109630.0,0.02817]
[1758981857264,4.92761775,109640.0,109630.0,0.02817]
[1758981857833,4.64285775,109640.0,109630.0,0.02817]
[1758981858026,4.92761775,109640.0,109630.0,0.02817]
[1758981859315,4.92761775,109640.0,109630.0,0.07817]
[1758981859511,4.94192958,109640.0,109630.0,0.07817]
[1758981868283,4.94193008,109640.0,109630.0,0.07817]
[1758981870129,4.92761825,109640.0,109630.0,0.07817]
[1758981871076,4.69691454,109640.0,109630.0,0.07817]
[1758981872969,4.71122866,109640.0,109630.0,0.07817]
[1758981874279,4.42646866,109640.0,109630.0,0.07817]
[1758981874483,4.71126866,109640.0,109630.0,0.07817]
[1758981879856,4.42646866,109640.0,109630.0,0.07817]
[1758981880054,4.69719681,109640.0,109630.0,0.07817]
[1758981881170,4.41215681,109640.0,109630.0,0.07817]
[1758981881401,4.69719681,109640.0,109630.0,0.07817]
[1758981882308,4.41215681,109640.0,109630.0,0.07817]
[1758981882524,4.69727681,109640.0,109630.0,0.08032]
[1758981883141,4.71158868,109640.0,109630.0,0.08032]
[1758981885673,4.42646868,109640.0,109630.0,0.08032]
[1758981885832,4.71158868,109640.0,109630.0,0.08032]
[1758981887463,4.42646868,109640.0,109630.0,0.08032]
[1758981887679,4.71158868,109640.0,109630.0,0.08335]
[1758981888174,4.42646868,109640.0,109630.0,0.08335]
[1758981888310,4.71154868,109640.0,109630.0,0.08335]
[1758981888731,4.42646868,109640.0,109630.0,0.08335]
[1758981888939,4.71158868,109640.0,109630.0,0.08335]
[1758981891645,4.68695575,109640.0,109630.0,0.08335]
[1758981894910,4.47543578,109640.0,109630.0,0.08335]
[1758981895120,4.19031578,109640.0,109630.0,0.08335]
[1758981895328,4.44779864,109640.0,109630.0,0.08335]
[1758981895765,4.16279864,109640.0,109630.0,0.08335]
[1758981895971,4.44779864,109640.0,109630.0,0.08335]
[1758981897432,4.2646588,109640.0,109630.0,0.08335]
[1758981897647,3.9796588,109640.0,109630.0,0.08335]
[1758981897858,4.2646588,109640.0,109630.0,0.08335]
[1758981898664,4.17554571,109640.0,109630.0,0.08335]
[1758981899168,4.16123384,109640.0,109630.0,0.08335]
[1758981901899,3.80444245,109640.0,109630.0,0.08335]
[1758981902107,4.16123384,109640.0,109630.0,0.08335]
[1758981902322,4.17554558,109640.0,109630.0,0.08335]
[1758981902604,3.4619628,109640.0,109630.0,0.08335]
[1758981902830,4.17554558,109640.0,109630.0,0.08335]
[1758981903282,4.17554888,109640.0,109630.0,0.08335]
[1758981905637,3.1769661,109640.0,109630.0,0.1218769]
[1758981905854,3.16265436,109640.0,109630.0,0.1218769]
[1758981906069,2.97381816,109640.0,109630.0,0.1218769]
[1758981906283,2.84170197,109640.0,109630.0,0.1218769]
[1758981906496,2.84170197,109640.0,109630.0,0.14012008]
[1758981906683,2.84070197,109640.0,109630.0,0.14012008]
[1758981908123,2.84070197,109640.0,109630.0,0.14212008]
[1758981908328,2.84070197,109640.0,109630.0,0.14412008]
[1758981910423,2.85501217,109640.0,109630.0,0.14412008]
[1758981911965,3.03742734,109640.0,109630.0,0.14412008]
[1758981913993,2.85501217,109640.0,109630.0,0.14412008]
[1758981915001,2.8275602,109640.0,109630.0,0.14412008]
[1758981915404,2.60652702,109640.0,109630.0,0.14412008]
[1758981915611,3.3237952,109640.0,109630.0,0.14412008]
[1758981916215,3.3137952,109640.0,109630.0,0.14412008]
[1758981916410,3.3029202,109640.0,109630.0,0.14412008]
[1758981917462,3.2590202,109640.0,109630.0,0.14412008]
[1758981917636,2.9578272,109640.0,109630.0,0.14412008]
[1758981917973,2.8533912,109640.0,109630.0,0.14412008]
[1758981919797,2.3818212,109640.0,109630.0,0.14412008]
[1758981920046,1.9333812,109640.0,109630.0,0.14412008]
[1758981920257,1.5877742,109640.0,109630.0,0.14412008]
[1758981922125,1.77018937,109640.0,109630.0,0.14412008]
[1758981924096,1.77018937,109640.0,109630.0,0.42932008]
[1758981924414,1.77018937,109640.0,109630.0,0.4110769]
[1758981924741,1.75587917,109640.0,109630.0,0.4110769]
[1758981926718,1.54176546,109640.0,109630.0,0.4110769]
[1758981926964,2.43206417,109640.0,109630.0,0.4110769]
[1758981927162,2.35524717,109640.0,109630.0,0.4110769]
[1758981928009,2.35524717,109640.0,109630.0,0.1258769]
[1758981928162,2.3695572,109640.0,109630.0,0.14412008]
[1758981928715,2.3695572,109640.0,109630.0,0.42932008]
[1758981928919,2.3695572,109640.0,109630.0,0.4110369]
[1758981930509,2.3695572,109640.0,109630.0,0.1258769]
[1758981930709,2.3695572,109640.0,109630.0,0.4110369]
[1758981932925,2.72634859,109640.0,109630.0,0.4110369]
[1758981934874,1.94122103,109640.0,109630.0,0.4110369]
[1758981935855,1.91791183,109640.0,109630.0,0.4110369]
[1758981936055,2.9234722,109640.0,109630.0,0.4110369]
[1758981937424,2.74105703,109640.0,109630.0,0.4110369]
[1758981940378,3.09784842,109640.0,109630.0,0.4110369]
[1758981940609,2.74105703,109640.0,109630.0,0.4110369]
[1758981940838,2.57955203,109640.0,109630.0,0.4110369]
[1758981944340,1.74145203,109640.0,109630.0,0.59346871]
[1758981944551,0.59118303,109640.0,109630.0,0.59346871]
[1758981945818,0.59118303,109640.0,109630.0,0.59334871]
[1758981946119,0.59118303,109640.0,109630.0,0.1258769]
[1758981946325,0.59118303,109640.0,109630.0,0.42916008]
[1758981946533,0.59118303,109640.0,109630.0,0.4109169]
[1758981946713,0.59118303,109640.0,109630.0,0.59334871]
[1758981946927,0.59118303,109640.0,109630.0,0.30830871]
[1758981947241,0.59118303,109640.0,109630.0,0.59338871]
[1758981948733,0.59118303,109640.0,109630.0,0.30830871]
[1758981948936,0.59118303,109640.0,109630.0,0.59338871]
[1758981952512,0.38364303,109640.0,109630.0,0.59338871]
[1758981954785,0.52724403,109640.0,109630.0,0.59338871]
[1758981955534,0.49809903,109640.0,109630.0,0.59338871]
[1758981955722,0.01431003,109640.0,109630.0,0.59338871]
[1758981956020,0.51963,109640.0,109630.0,0.59338871]
[1758981956226,0.525513,109640.0,109630.0,0.59338871]
[1758981956523,0.37899139,109650.0,109630.0,0.59338871]
[1758981956735,0.481257,109640.0,109630.0,0.59338871]
[1758981956925,0.37899139,109650.0,109630.0,0.59338871]
[1758981957063,0.469578,109640.0,109630.0,0.59338871]
[1758981957692,0.469578,109640.0,109630.0,0.59138871]
[1758981958592,0.469578,109640.0,109630.0,0.58938871]
[1758981958895,0.626748,109640.0,109630.0,0.58938871]
[1758981959038,0.55807132,109640.0,109630.0,0.58938871]
[1758981959597,0.55807132,109640.0,109630.0,0.59138871]
[1758981960026,0.55807132,109640.0,109630.0,0.59338871]
[1758981960662,0.8255201,109640.0,109630.0,0.30830871]
[1758981960821,0.8255201,109640.0,109630.0,0.59330871]
[1758981961026,0.8255201,109640.0,109630.0,0.30830871]
[1758981961450,0.8255201,109640.0,109630.0,0.59330871]
[1758981962045,0.55807132,109640.0,109630.0,0.59330871]
[1758981962300,0.53908432,109640.0,109630.0,0.59330871]
[1758981962480,0.8065331,109640.0,109630.0,0.59330871]
[1758981963218,0.53908432,109640.0,109630.0,0.59330871]
[1758981965443,0.53908432,109640.0,109630.0,0.58807871]
[1758981967428,0.524775,109640.0,109630.0,0.58807871]
[1758981968180,0.79222378,109640.0,109630.0,0.58807871]
[1758981968499,0.79222378,109640.0,109630.0,0.30307871]
[1758981968687,0.79222378,109640.0,109630.0,0.58827871]
[1758981970289,0.8065331,109640.0,109630.0,0.58827871]
[1758981971559,0.8065331,109640.0,109630.0,0.1206469]
[1758981971763,0.8065331,109640.0,109630.0,0.4058069]
[1758981972338,0.8065331,109640.0,109630.0,0.58823871]
[1758981973897,0.8065331,109640.0,109630.0,0.4058069]
[1758981975417,0.79222378,109640.0,109630.0,0.4058069]
[1758981975650,0.524775,109640.0,109630.0,0.4058069]
[1758981975846,0.79222378,109640.0,109630.0,0.4058069]
[1758981977771,0.79222378,109640.0,109630.0,0.1176169]
[1758981977981,0.79222378,109640.0,109630.0,0.4026969]
[1758981978655,0.80653317,109640.0,109630.0,0.4058569]
[1758981981644,0.80653317,109640.0,109630.0,0.4026969]
[1758981981980,0.80653317,109640.0,109630.0,0.1176169]
[1758981982181,0.80653317,109640.0,109630.0,0.4027769]
[1758981983015,0.80653317,109640.0,109630.0,0.4059169]
[1758981984783,0.53908439,109640.0,109630.0,0.4059169]
[1758981984958,0.80653317,109640.0,109630.0,0.4059169]
[1758981987923,0.79222378,109640.0,109630.0,0.4059169]
[1758981988519,0.79222378,109640.0,109630.0,0.58834871]
[1758981989362,0.524775,109640.0,109630.0,0.58834871]
[1758981989595,0.79222378,109640.0,109630.0,0.58834871]
[1758981991282,0.524775,109640.0,109630.0,0.58834871]
[1758981991433,0.79222378,109640.0,109630.0,0.58834871]
[1758981993711,0.79222378,109640.0,109630.0,0.4059169]
[1758981996117,0.62835083,109640.0,109630.0,0.4059169]
[1758981996262,1.669674,109640.0,109630.0,0.4059169]
[1758981996462,1.81724178,109640.0,109630.0,0.4059169]
[1758981999454,1.83155126,109640.0,109630.0,0.4059169]
[1758981999943,1.76521126,109640.0,109630.0,0.4059169]
[1758982000757,1.75090178,109640.0,109630.0,0.4059169]
[1758982001261,1.53092129,109640.0,109630.0,0.4059169]
[1758982001396,3.067515,109640.0,109630.0,0.4059169]
[1758982001612,2.391144,109640.0,109630.0,0.4059169]
[1758982001816,2.65859278,109640.0,109630.0,0.4059169]
[1758982003340,2.65859278,109640.0,109630.0,0.58834871]
[1758982003782,2.67290203,109640.0,109630.0,0.58834871]
[1758982004595,2.67290203,109640.0,109630.0,0.4059169]
[1758982005214,2.65859278,109640.0,109630.0,0.4059169]
[1758982008326,2.67290199,109640.0,109630.0,0.4059169]
[1758982009677,2.85531716,109640.0,109630.0,0.1207569]
[1758982009886,2.85531716,109640.0,109630.0,0.4059969]
[1758982012362,2.67290199,109640.0,109630.0,0.4059969]
[1758982012793,2.40545321,109640.0,109630.0,0.4059969]
[1758982013189,2.67290199,109640.0,109630.0,0.4059969]
[1758982017699,2.67290199,109640.0,109630.0,0.58842871]
[1758982017906,2.67290199,109640.0,109630.0,0.4059969]
[1758982018121,2.65859278,109640.0,109630.0,0.4059969]
[1758982018618,1.94418478,109640.0,109630.0,0.4059969]
[1758982018772,1.61230378,109640.0,109630.0,0.4059969]
[1758982020966,1.62661303,109640.0,109630.0,0.4059969]
[1758982022856,1.35916425,109640.0,109630.0,0.4059969]
[1758982024466,1.35916425,109640.0,109630.0,0.4059169]
[1758982025185,1.35916425,109640.0,109630.0,0.1176169]
[1758982025395,1.35916425,109640.0,109630.0,0.4027769]
[1758982026048,1.7157811,109640.0,109630.0,0.4060069]
[1758982028453,2.0557811,109640.0,109630.0,0.1208469]
[1758982028692,1.88157942,109640.0,109630.0,0.1208469]
[1758982028902,1.69916425,109640.0,109630.0,0.4060069]
[1758982029056,2.0557811,109640.0,109630.0,0.4060069]
[1758982031177,2.0557811,109640.0,109630.0,0.1154669]
[1758982031317,2.59481312,109640.0,109630.0,0.1070919]
[1758982031522,2.58050387,109640.0,109630.0,0.3723719]
[1758982031783,2.60795356,109640.0,109630.0,0.3922119]
[1758982031992,2.60795356,109640.0,109630.0,0.1070919]
[1758982032201,2.60795356,109640.0,109630.0,0.3922119]
[1758982034564,2.62226346,109640.0,109630.0,0.3922119]
[1758982035913,2.60795356,109640.0,109630.0,0.3922119]
[1758982038947,2.62226346,109640.0,109630.0,0.3922119]
[1758982041123,2.26564661,109640.0,109630.0,0.3922119]
[1758982041763,2.26564661,109640.0,109630.0,0.38236508]
[1758982050246,1.90902976,109640.0,109630.0,0.38766508]
[1758982050447,2.26564661,109640.0,109630.0,0.38766508]
[1758982051999,1.90902976,109640.0,109630.0,0.38766508]
[1758982052208,2.26564661,109640.0,109630.0,0.38766508]
[1758982053292,2.26564661,109640.0,109630.0,0.38236508]
[1758982053666,2.26564661,109640.0,109630.0,0.38450508]
[1758982053837,2.26564661,109640.0,109630.0,0.38766508]
[1758982058061,1.90902976,109640.0,109630.0,0.38766508]
[1758982058266,2.26564661,109640.0,109630.0,0.38766508]
[1758982059450,2.06348951,109640.0,109630.0,0.38766508]
[1758982070126,1.70687266,109640.0,109630.0,0.38766508]
[1758982070335,2.06348951,109640.0,109630.0,0.38766508]
[1758982070742,1.84692154,109640.0,109630.0,0.38766508]
[1758982070958,2.51635161,109640.0,109630.0,0.38766508]
[1758982076198,2.33393644,109640.0,109630.0,0.38766508]
[1758982078158,2.15210578,109640.0,109630.0,0.38766508]
[1758982078503,2.98636544,109640.0,109630.0,0.38766508]
[1758982078702,2.73790044,109640.0,109630.0,0.38766508]
[1758982080069,2.92031561,109640.0,109630.0,0.38766508]
[1758982080635,2.73790044,109640.0,109630.0,0.38766508]
[1758982081078,2.92031561,109640.0,109630.0,0.38766508]
[1758982082668,3.09872148,109640.0,109630.0,0.38766508]
[1758982084284,1.25196059,109640.0,109630.0,0.38766508]
[1758982084494,1.96939848,109640.0,109630.0,0.38766508]
[1758982087167,1.96939848,109640.0,109630.0,0.09938508]
[1758982087369,1.96939848,109640.0,109630.0,0.34010508]
[1758982090737,1.96939848,109640.0,109630.0,0.09938508]
[1758982091023,1.96939848,109640.0,109630.0,0.38422508]
[1758982091290,1.96939848,109640.0,109630.0,0.38426508]
[1758982096705,1.96939848,109640.0,109630.0,0.38734508]
[1758982097515,1.25196059,109640.0,109630.0,0.38734508]
[1758982097711,1.78698331,109640.0,109630.0,0.38734508]
[1758982099126,1.96939848,109640.0,109630.0,0.38734508]
[1758982103998,1.96939848,109640.0,109630.0,0.10246508]
[1758982104206,1.96939848,109640.0,109630.0,0.38730508]
[1758982104759,1.96939848,109640.0,109630.0,0.38726508]
[1758982107540,1.96939848,109640.0,109630.0,0.38418508]
[1758982107756,1.96939848,109640.0,109630.0,0.10240508]
[1758982108147,1.96939848,109640.0,109630.0,0.38724508]
[1758982110258,1.96939848,109640.0,109630.0,0.38422508]
[1758982114238,1.96939848,109640.0,109630.0,0.38418508]
[1758982114996,1.96939848,109640.0,109630.0,0.09938508]
[1758982115193,1.96939848,109640.0,109630.0,0.38418508]
[1758982115608,1.96939848,109640.0,109630.0,0.09938508]
[1758982115830,1.96939848,109640.0,109630.0,0.22168508]
[1758982117737,1.77409257,109640.0,109630.0,0.22168508]
[1758982117937,1.62939848,109640.0,109630.0,0.22168508]
[1758982118117,1.62939848,109640.0,109630.0,0.38204508]
[1758982118320,1.61508858,109640.0,109630.0,0.38204508]
[1758982119836,1.95508858,109640.0,109630.0,0.38204508]
[1758982121492,1.42006586,109640.0,109630.0,0.38204508]
[1758982121728,1.95508858,109640.0,109630.0,0.38204508]
[1758982122514,1.9693985,109640.0,109630.0,0.38204508]
[1758982125054,1.9693985,109640.0,109630.0,0.38400508]
[1758982126266,1.95508858,109640.0,109630.0,0.38400508]
[1758982126579,1.95508858,109640.0,109630.0,0.38702508]
[1758982129518,1.9693985,109640.0,109630.0,0.38702508]
[1758982129719,1.43437578,109640.0,109630.0,0.38702508]
[1758982129936,1.9693985,109640.0,109630.0,0.38702508]
[1758982135639,1.76024278,109640.0,109630.0,0.38702508]
[1758982135819,1.78769247,109640.0,109630.0,0.38702508]
[1758982138930,1.77338255,109640.0,109630.0,0.38702508]
[1758982140857,1.56813124,109640.0,109630.0,0.38702508]
[1758982141164,4.22962824,109640.0,109630.0,0.38702508]
[1758982141862,4.24393819,109640.0,109630.0,0.38702508]
[1758982142079,3.72670619,109640.0,109630.0,0.38702508]
[1758982144649,3.54839902,109640.0,109630.0,0.38702508]
[1758982144855,3.90511457,109640.0,109630.0,0.38702508]
[1758982149096,3.13323202,109640.0,109630.0,0.38702508]
[1758982152157,3.11892207,109640.0,109630.0,0.38702508]
[1758982152785,3.11892207,109640.0,109630.0,0.38690508]
[1758982155171,3.13323203,109640.0,109630.0,0.38690508]
[1758982155522,3.11892207,109640.0,109630.0,0.38690508]
[1758982156003,2.93827507,109640.0,109630.0,0.38690508]
[1758982156757,2.91109507,109640.0,109630.0,0.38690508]
[1758982156981,2.69142107,109640.0,109630.0,0.38690508]
[1758982157148,2.5090059,109640.0,109630.0,0.38690508]
[1758982157350,2.69142107,109640.0,109630.0,0.38690508]
[1758982157993,2.5090059,109640.0,109630.0,0.38690508]
[1758982158203,2.0317699,109640.0,109630.0,0.38690508]
[1758982158447,2.0182419,109640.0,109630.0,0.38690508]
[1758982158659,2.03255186,109640.0,109630.0,0.38690508]